[Event "*** MasterClass Titled Tuesday Blitz"]
[Site "Chess.com"]
[Date "2017.08.01"]
[Round "2"]
[White "Rbrrt"]
[Black "AlexanderKing"]
[Result "1-0"]
[WhiteElo "2302"]
[BlackElo "2446"]
[TimeControl "180+2"]
[EndTime "13:21:13 PDT"]
[Termination "Rbrrt won by checkmate"]

1. e4 {[%clk 0:03:01.9]} 1... e5 {[%clk 0:03:00.7]} 2. Nf3 {[%clk 0:03:02.1]}
2... Nc6 {[%clk 0:03:02.2]} 3. d4 {[%clk 0:03:03.8]} 3... exd4 {[%clk
0:03:03.4]} 4. Nxd4 {[%clk 0:03:05.7]} 4... Nf6 {[%clk 0:03:04.2]} 5. Nxc6
{[%clk 0:03:07.1]} 5... bxc6 {[%clk 0:03:06.1]} 6. e5 {[%clk 0:03:08.7]} 6...
Qe7 {[%clk 0:03:07.7]} 7. Qe2 {[%clk 0:03:10.4]} 7... Nd5 {[%clk 0:03:08.6]} 8.
c4 {[%clk 0:03:12.1]} 8... Nb6 {[%clk 0:03:09.9]} 9. Nc3 {[%clk 0:03:13.8]} 9...
Bb7 {[%clk 0:03:10.8]} 10. Bf4 {[%clk 0:03:03.3]} 10... g6 {[%clk 0:03:06.2]}
11. Qe3 {[%clk 0:02:56.8]} 11... Bg7 {[%clk 0:03:02.5]} 12. Bd3 {[%clk
0:02:58.5]} 12... O-O {[%clk 0:02:58.4]} 13. O-O {[%clk 0:03:00.1]} 13... Rfe8
{[%clk 0:02:57.9]} 14. Rfe1 {[%clk 0:02:57.5]} 14... Qb4 {[%clk 0:02:53.1]} 15.
Ne4 {[%clk 0:02:55.2]} 15... Qxb2 {[%clk 0:02:40]} 16. Rab1 {[%clk 0:02:48.3]}
16... Qa3 {[%clk 0:02:24.5]} 17. Bh6 {[%clk 0:02:49.1]} 17... Rxe5 {[%clk
0:01:48.8]} 18. Bxg7 {[%clk 0:02:48.4]} 18... Kxg7 {[%clk 0:01:47]} 19. f4
{[%clk 0:02:50]} 19... Re6 {[%clk 0:01:06.5]} 20. f5 {[%clk 0:02:36.9]} 20...
gxf5 {[%clk 0:00:47.3]} 21. Qd4+ {[%clk 0:02:36.9]} 21... f6 {[%clk 0:00:17.8]}
22. Nc5 {[%clk 0:02:36.7]} 22... Rxe1+ {[%clk 0:00:06.3]} 23. Rxe1 {[%clk
0:02:36.6]} 23... Ba6 {[%clk 0:00:04.2]} 24. Re7+ {[%clk 0:02:07.6]} 24... Kg6
{[%clk 0:00:04.1]} 25. Bxf5+ {[%clk 0:02:03.6]} 25... Kxf5 {[%clk 0:00:03.1]}
26. Qe4+ {[%clk 0:02:02.1]} 26... Kg5 {[%clk 0:00:04.4]} 27. h4+ {[%clk
0:01:52.5]} 27... Kh6 {[%clk 0:00:02.9]} 28. Rxh7# {[%clk 0:01:53]} 1-0

[Event "*** MasterClass Titled Tuesday Blitz"]
[Site "Chess.com"]
[Date "2017.08.01"]
[Round "2"]
[White "LastHeroJr"]
[Black "belisarius64"]
[Result "0-1"]
[WhiteElo "2394"]
[BlackElo "2349"]
[TimeControl "180+2"]
[EndTime "13:21:17 PDT"]
[Termination "belisarius64 won by resignation"]

1. e4 {[%clk 0:03:01.9]} 1... e5 {[%clk 0:03:00.6]} 2. Nf3 {[%clk 0:03:03.1]}
2... Nc6 {[%clk 0:03:01.5]} 3. Bc4 {[%clk 0:03:04.3]} 3... Bc5 {[%clk
0:03:01.2]} 4. O-O {[%clk 0:02:59.9]} 4... Nf6 {[%clk 0:03:01.9]} 5. d3 {[%clk
0:03:01]} 5... O-O {[%clk 0:03:00.4]} 6. h3 {[%clk 0:02:58.7]} 6... a6 {[%clk
0:02:59.3]} 7. c3 {[%clk 0:02:54.3]} 7... Ba7 {[%clk 0:02:59.4]} 8. Re1 {[%clk
0:02:50.1]} 8... d6 {[%clk 0:03:00.8]} 9. a4 {[%clk 0:02:50.4]} 9... Be6 {[%clk
0:02:59.5]} 10. Bxe6 {[%clk 0:02:48.2]} 10... fxe6 {[%clk 0:03:00.5]} 11. Be3
{[%clk 0:02:40.2]} 11... Bxe3 {[%clk 0:02:59.6]} 12. Rxe3 {[%clk 0:02:42]} 12...
Qe8 {[%clk 0:02:40.6]} 13. Nbd2 {[%clk 0:02:29.1]} 13... Nh5 {[%clk 0:02:39.1]}
14. g3 {[%clk 0:02:10.3]} 14... Qg6 {[%clk 0:02:37.3]} 15. Kh2 {[%clk 0:01:48]}
15... Rf7 {[%clk 0:02:37.6]} 16. d4 {[%clk 0:01:36]} 16... exd4 {[%clk
0:02:17.4]} 17. cxd4 {[%clk 0:01:33.8]} 17... Raf8 {[%clk 0:02:11]} 18. Nb3
{[%clk 0:00:36.1]} 18... e5 {[%clk 0:02:11.3]} 19. d5 {[%clk 0:00:31.3]} 19...
Nd4 {[%clk 0:02:12.6]} 20. Nbd2 {[%clk 0:00:24.5]} 20... Nf6 {[%clk 0:01:40.3]}
21. Nh4 {[%clk 0:00:24.2]} 21... Qh6 {[%clk 0:01:39.1]} 22. Kg2 {[%clk 0:00:18]}
22... Nxd5 {[%clk 0:01:36.8]} 23. exd5 {[%clk 0:00:16.6]} 23... Rxf2+ {[%clk
0:01:37.6]} 24. Kh1 {[%clk 0:00:18.1]} 24... Qxe3 {[%clk 0:01:38.2]} 25. Nf1
{[%clk 0:00:17.4]} 25... Qe4+ {[%clk 0:01:29.5]} 26. Kg1 {[%clk 0:00:17.6]}
26... Ne2+ {[%clk 0:01:31.2]} 0-1

[Event "*** MasterClass Titled Tuesday Blitz"]
[Site "Chess.com"]
[Date "2017.08.01"]
[Round "2"]
[White "Cocovitsch007"]
[Black "Drags95"]
[Result "0-1"]
[WhiteElo "2220"]
[BlackElo "2516"]
[TimeControl "180+2"]
[EndTime "13:21:25 PDT"]
[Termination "Drags95 won by resignation"]

1. d4 {[%clk 0:03:01.9]} 1... Nf6 {[%clk 0:02:59.1]} 2. c4 {[%clk 0:03:02.5]}
2... e6 {[%clk 0:03:01]} 3. Nf3 {[%clk 0:03:02.1]} 3... b6 {[%clk 0:02:59.6]} 4.
Nc3 {[%clk 0:03:02.2]} 4... Bb7 {[%clk 0:03:00.3]} 5. Bg5 {[%clk 0:03:01.8]}
5... Bb4 {[%clk 0:02:59.3]} 6. Nd2 {[%clk 0:03:02.1]} 6... h6 {[%clk 0:02:59]}
7. Bh4 {[%clk 0:03:02.8]} 7... c5 {[%clk 0:02:56.3]} 8. d5 {[%clk 0:03:02.6]}
8... exd5 {[%clk 0:02:54.3]} 9. cxd5 {[%clk 0:03:02.1]} 9... Bxc3 {[%clk
0:02:55.3]} 10. bxc3 {[%clk 0:03:02.3]} 10... Bxd5 {[%clk 0:02:56.8]} 11. e4
{[%clk 0:03:00.7]} 11... Qe7 {[%clk 0:02:29.8]} 12. Bxf6 {[%clk 0:02:53.8]}
12... gxf6 {[%clk 0:02:31.7]} 13. Be2 {[%clk 0:02:26.5]} 13... Be6 {[%clk
0:02:27.1]} 14. O-O {[%clk 0:02:25.9]} 14... Nc6 {[%clk 0:02:28]} 15. f4 {[%clk
0:02:26.2]} 15... f5 {[%clk 0:01:39.3]} 16. exf5 {[%clk 0:02:16.5]} 16... Bxf5
{[%clk 0:01:40.4]} 17. Nc4 {[%clk 0:01:56.2]} 17... Kd8 {[%clk 0:01:39.7]} 18.
Bf3 {[%clk 0:01:49]} 18... Kc7 {[%clk 0:01:38.3]} 19. Re1 {[%clk 0:01:47.5]}
19... Qf6 {[%clk 0:01:35.4]} 20. Ne5 {[%clk 0:01:39.9]} 20... Rad8 {[%clk
0:01:31.2]} 21. Qa4 {[%clk 0:01:34.9]} 21... Na5 {[%clk 0:01:27.7]} 22. Rad1
{[%clk 0:01:23]} 22... d6 {[%clk 0:01:23]} 23. Nc6 {[%clk 0:01:20.7]} 23... Bd7
{[%clk 0:01:24.1]} 24. Qa3 {[%clk 0:00:31.9]} 24... Bxc6 {[%clk 0:01:22.2]} 25.
Bxc6 {[%clk 0:00:30.7]} 25... Nxc6 {[%clk 0:01:24.1]} 26. Qa4 {[%clk 0:00:24]}
26... Rhe8 {[%clk 0:01:24]} 0-1

[Event "*** MasterClass Titled Tuesday Blitz"]
[Site "Chess.com"]
[Date "2017.08.01"]
[Round "2"]
[White "AdrianaNikolova"]
[Black "Adham_Fawzy"]
[Result "0-1"]
[WhiteElo "2287"]
[BlackElo "2391"]
[TimeControl "180+2"]
[EndTime "13:21:38 PDT"]
[Termination "Adham_Fawzy won by resignation"]

1. e4 {[%clk 0:03:01.9]} 1... c5 {[%clk 0:03:00.1]} 2. Nf3 {[%clk 0:03:02.1]}
2... Nc6 {[%clk 0:03:01.2]} 3. d4 {[%clk 0:03:00.9]} 3... cxd4 {[%clk
0:03:03.1]} 4. Nxd4 {[%clk 0:03:02.8]} 4... e5 {[%clk 0:03:04.7]} 5. Nb5 {[%clk
0:03:03.1]} 5... d6 {[%clk 0:03:06]} 6. N5c3 {[%clk 0:03:01.6]} 6... Be7 {[%clk
0:03:01.5]} 7. Nd5 {[%clk 0:03:01.1]} 7... Nf6 {[%clk 0:03:00.3]} 8. Nxe7 {[%clk
0:03:01.6]} 8... Nxe7 {[%clk 0:02:58.9]} 9. Nc3 {[%clk 0:03:03.5]} 9... d5
{[%clk 0:02:59.7]} 10. exd5 {[%clk 0:03:03.5]} 10... Nfxd5 {[%clk 0:02:58.2]}
11. Nxd5 {[%clk 0:02:45.9]} 11... Nxd5 {[%clk 0:02:55.9]} 12. Bb5+ {[%clk
0:02:45]} 12... Bd7 {[%clk 0:02:52]} 13. Qxd5 {[%clk 0:02:26.6]} 13... Qa5+
{[%clk 0:02:52.2]} 14. Bd2 {[%clk 0:02:18.3]} 14... Qxb5 {[%clk 0:02:52.1]} 15.
Qxb5 {[%clk 0:02:14.9]} 15... Bxb5 {[%clk 0:02:54]} 16. O-O-O {[%clk 0:02:16.3]}
16... f6 {[%clk 0:02:51]} 17. Rhe1 {[%clk 0:02:08.7]} 17... Kf7 {[%clk 0:02:52]}
18. f4 {[%clk 0:02:08.6]} 18... exf4 {[%clk 0:02:53]} 19. Bxf4 {[%clk
0:02:10.5]} 19... Rhe8 {[%clk 0:02:54.5]} 20. b3 {[%clk 0:02:08.6]} 20... g5
{[%clk 0:02:54.2]} 21. Bc7 {[%clk 0:02:06.1]} 21... h5 {[%clk 0:02:53.5]} 22. c4
{[%clk 0:02:05.4]} 22... Bc6 {[%clk 0:02:54]} 23. g3 {[%clk 0:02:01.2]} 23...
Kg6 {[%clk 0:02:50.5]} 24. Rf1 {[%clk 0:01:56.2]} 24... Rac8 {[%clk 0:02:39.5]}
25. Ba5 {[%clk 0:01:50.1]} 25... Re6 {[%clk 0:02:40.3]} 26. Bc3 {[%clk
0:01:39.6]} 26... b5 {[%clk 0:02:40.7]} 27. c5 {[%clk 0:01:35.3]} 27... Bg2
{[%clk 0:02:37.7]} 28. Rf2 {[%clk 0:01:27.4]} 28... Rxc5 {[%clk 0:02:38.2]} 29.
Kb2 {[%clk 0:01:24.9]} 29... Be4 {[%clk 0:02:37.1]} 30. Rd7 {[%clk 0:01:10.1]}
30... Rec6 {[%clk 0:02:32.2]} 31. Bb4 {[%clk 0:00:52.5]} 31... Rc2+ {[%clk
0:02:29.7]} 32. Rxc2 {[%clk 0:00:53.4]} 32... Rxc2+ {[%clk 0:02:31]} 33. Ka3
{[%clk 0:00:54.8]} 33... Rxh2 {[%clk 0:02:31.5]} 34. Be7 {[%clk 0:00:47.1]}
34... a5 {[%clk 0:02:27.1]} 35. Rd6 {[%clk 0:00:40.2]} 35... Bb1 {[%clk
0:02:23.9]} 36. Rxf6+ {[%clk 0:00:34.2]} 36... Kg7 {[%clk 0:02:24.6]} 37. b4
{[%clk 0:00:17.2]} 37... a4 {[%clk 0:02:25.5]} 0-1

[Event "*** MasterClass Titled Tuesday Blitz"]
[Site "Chess.com"]
[Date "2017.08.01"]
[Round "2"]
[White "BIG_Pirate"]
[Black "FearlessKing64"]
[Result "0-1"]
[WhiteElo "2409"]
[BlackElo "2213"]
[TimeControl "180+2"]
[EndTime "13:21:45 PDT"]
[Termination "FearlessKing64 won by resignation"]

1. Nf3 {[%clk 0:03:01.9]} 1... Nf6 {[%clk 0:02:59.6]} 2. c4 {[%clk 0:03:02.7]}
2... g6 {[%clk 0:02:59.3]} 3. Nc3 {[%clk 0:03:03.6]} 3... d5 {[%clk 0:02:59.8]}
4. cxd5 {[%clk 0:03:03.8]} 4... Nxd5 {[%clk 0:03:01.7]} 5. g3 {[%clk 0:03:05.1]}
5... Bg7 {[%clk 0:03:01.2]} 6. Bg2 {[%clk 0:03:06.2]} 6... O-O {[%clk
0:02:55.5]} 7. O-O {[%clk 0:03:07]} 7... Nxc3 {[%clk 0:02:55.5]} 8. bxc3 {[%clk
0:03:07.8]} 8... c5 {[%clk 0:02:56.2]} 9. Rb1 {[%clk 0:03:05.5]} 9... Nc6 {[%clk
0:02:56.2]} 10. Qa4 {[%clk 0:02:56]} 10... Qc7 {[%clk 0:02:40.1]} 11. Ba3 {[%clk
0:02:41.9]} 11... b6 {[%clk 0:02:27.8]} 12. Rfc1 {[%clk 0:02:40.2]} 12... Bd7
{[%clk 0:02:21.8]} 13. Qd1 {[%clk 0:02:32.7]} 13... Rad8 {[%clk 0:02:10.4]} 14.
d4 {[%clk 0:02:31.5]} 14... Na5 {[%clk 0:02:08.8]} 15. Qd3 {[%clk 0:02:14.6]}
15... e5 {[%clk 0:01:58.2]} 16. d5 {[%clk 0:01:41.7]} 16... e4 {[%clk
0:01:56.1]} 17. Qxe4 {[%clk 0:01:42.8]} 17... Bf5 {[%clk 0:01:55.9]} 18. Qa4
{[%clk 0:01:22.3]} 18... Bxb1 {[%clk 0:01:53]} 19. Rxb1 {[%clk 0:01:24.2]} 19...
Rxd5 {[%clk 0:01:49]} 20. Nd4 {[%clk 0:01:13.2]} 20... Qd7 {[%clk 0:01:34.2]}
21. Nb5 {[%clk 0:01:08.6]} 21... Rd2 {[%clk 0:01:26.9]} 22. Bxc5 {[%clk
0:00:55.3]} 22... Rd8 {[%clk 0:01:09.1]} 23. Bf3 {[%clk 0:00:39.9]} 23... Rd1+
{[%clk 0:01:02.6]} 24. Kg2 {[%clk 0:00:31]} 24... Rxb1 {[%clk 0:01:00.4]} 25.
Be3 {[%clk 0:00:27.1]} 0-1

[Event "*** MasterClass Titled Tuesday Blitz"]
[Site "Chess.com"]
[Date "2017.08.01"]
[Round "2"]
[White "Quiet_Desperation"]
[Black "dmjjmd"]
[Result "0-1"]
[WhiteElo "2097"]
[BlackElo "2153"]
[TimeControl "180+2"]
[EndTime "13:21:47 PDT"]
[Termination "dmjjmd won by resignation"]

1. e4 {[%clk 0:03:01.9]} 1... e5 {[%clk 0:03:00.1]} 2. Nf3 {[%clk 0:02:54]} 2...
Nc6 {[%clk 0:03:01.5]} 3. Bb5 {[%clk 0:02:55.2]} 3... a6 {[%clk 0:03:02.5]} 4.
Ba4 {[%clk 0:02:56.5]} 4... Nf6 {[%clk 0:03:04.1]} 5. d3 {[%clk 0:02:57.9]} 5...
b5 {[%clk 0:03:05.3]} 6. Bb3 {[%clk 0:02:58.9]} 6... Bc5 {[%clk 0:03:07.1]} 7.
c3 {[%clk 0:03:00.3]} 7... O-O {[%clk 0:03:08.2]} 8. O-O {[%clk 0:03:02]} 8...
d6 {[%clk 0:03:09.2]} 9. h3 {[%clk 0:03:03.2]} 9... Bb6 {[%clk 0:03:04.3]} 10.
Re1 {[%clk 0:03:04.3]} 10... Be6 {[%clk 0:03:05.4]} 11. Nbd2 {[%clk 0:03:04.2]}
11... Na5 {[%clk 0:03:00.4]} 12. Bc2 {[%clk 0:03:04.8]} 12... c5 {[%clk
0:03:01.5]} 13. Nf1 {[%clk 0:03:05.9]} 13... Nc6 {[%clk 0:03:02.5]} 14. Ng3
{[%clk 0:03:07.2]} 14... Re8 {[%clk 0:02:58.5]} 15. Nh4 {[%clk 0:03:08.2]} 15...
d5 {[%clk 0:02:58]} 16. exd5 {[%clk 0:02:58.5]} 16... Nxd5 {[%clk 0:02:56.9]}
17. Nhf5 {[%clk 0:02:59.5]} 17... Qf6 {[%clk 0:02:24.4]} 18. d4 {[%clk
0:02:43.1]} 18... cxd4 {[%clk 0:02:21.6]} 19. Qg4 {[%clk 0:02:39.8]} 19... dxc3
{[%clk 0:01:59.1]} 20. Qh5 {[%clk 0:02:10.9]} 20... g6 {[%clk 0:01:32.1]} 21.
Qg4 {[%clk 0:01:47.7]} 21... cxb2 {[%clk 0:00:58.5]} 22. Bxb2 {[%clk 0:01:41.1]}
22... Kf8 {[%clk 0:00:54.3]} 23. Bc1 {[%clk 0:01:09.2]} 23... gxf5 {[%clk
0:00:49.1]} 24. Nxf5 {[%clk 0:01:08.9]} 24... Bxf5 {[%clk 0:00:48.5]} 25. Bxf5
{[%clk 0:01:09.8]} 25... Nce7 {[%clk 0:00:37.8]} 26. Bxh7 {[%clk 0:01:01.8]}
26... Bxf2+ {[%clk 0:00:32.3]} 27. Kh2 {[%clk 0:01:02.2]} 27... Bxe1 {[%clk
0:00:27.1]} 28. Ba3 {[%clk 0:00:59.8]} 28... Qf4+ {[%clk 0:00:26.6]} 0-1

[Event "*** MasterClass Titled Tuesday Blitz"]
[Site "Chess.com"]
[Date "2017.08.01"]
[Round "2"]
[White "LazarusIcarus"]
[Black "MMSANCHEZ"]
[Result "0-1"]
[WhiteElo "2195"]
[BlackElo "2297"]
[TimeControl "180+2"]
[EndTime "13:21:50 PDT"]
[Termination "MMSANCHEZ won by checkmate"]

1. e4 {[%clk 0:03:01.9]} 1... e6 {[%clk 0:03:00.4]} 2. d4 {[%clk 0:03:02.3]}
2... d5 {[%clk 0:03:01.3]} 3. Nd2 {[%clk 0:03:03.9]} 3... a6 {[%clk 0:03:01.4]}
4. Ngf3 {[%clk 0:03:02.9]} 4... Nf6 {[%clk 0:03:00.6]} 5. e5 {[%clk 0:02:54.1]}
5... Nfd7 {[%clk 0:03:01.1]} 6. Bd3 {[%clk 0:02:54.6]} 6... c5 {[%clk
0:03:02.2]} 7. c3 {[%clk 0:02:55.4]} 7... Nc6 {[%clk 0:03:03.4]} 8. O-O {[%clk
0:02:53.7]} 8... g5 {[%clk 0:03:04]} 9. dxc5 {[%clk 0:02:47.9]} 9... g4 {[%clk
0:03:04.8]} 10. Nd4 {[%clk 0:02:46]} 10... Ndxe5 {[%clk 0:03:05.3]} 11. N2b3
{[%clk 0:02:41.4]} 11... Nxd3 {[%clk 0:03:05.9]} 12. Qxd3 {[%clk 0:02:42]} 12...
e5 {[%clk 0:03:07.1]} 13. Re1 {[%clk 0:02:39.6]} 13... Bg7 {[%clk 0:03:03.6]}
14. Nf5 {[%clk 0:02:35.9]} 14... Bxf5 {[%clk 0:03:04.3]} 15. Qxf5 {[%clk
0:02:36.5]} 15... Qd7 {[%clk 0:03:04.8]} 16. Qh5 {[%clk 0:02:27.8]} 16... O-O
{[%clk 0:03:04.7]} 17. Bh6 {[%clk 0:02:22.7]} 17... f5 {[%clk 0:03:05.6]} 18.
Bxg7 {[%clk 0:02:21.4]} 18... Qxg7 {[%clk 0:03:04.9]} 19. Rad1 {[%clk
0:02:22.8]} 19... Rad8 {[%clk 0:03:03.4]} 20. Re3 {[%clk 0:01:47.8]} 20... f4
{[%clk 0:03:02.6]} 21. Red3 {[%clk 0:01:46.6]} 21... Ne7 {[%clk 0:03:03.4]} 22.
Na5 {[%clk 0:01:26.8]} 22... Rf5 {[%clk 0:02:46.3]} 23. Qh4 {[%clk 0:01:24.5]}
23... Re8 {[%clk 0:02:46.6]} 24. h3 {[%clk 0:01:13.6]} 24... Rg5 {[%clk
0:02:40]} 25. Nxb7 {[%clk 0:00:52.1]} 25... gxh3 {[%clk 0:02:37]} 26. Qxh3
{[%clk 0:00:52.8]} 26... e4 {[%clk 0:02:37.8]} 27. R3d2 {[%clk 0:00:48.9]} 27...
f3 {[%clk 0:02:33.5]} 28. g3 {[%clk 0:00:49.6]} 28... e3 {[%clk 0:02:29.1]} 29.
Rd4 {[%clk 0:00:49.9]} 29... Nf5 {[%clk 0:02:22.7]} 30. Rxd5 {[%clk 0:00:36.3]}
30... exf2+ {[%clk 0:02:23.7]} 31. Kxf2 {[%clk 0:00:34.9]} 31... Rxg3 {[%clk
0:02:00.4]} 32. Rd8 {[%clk 0:00:17.6]} 32... Rg2+ {[%clk 0:01:31.2]} 33. Kf1
{[%clk 0:00:18.3]} 33... Ne3+ {[%clk 0:01:30.7]} 34. Ke1 {[%clk 0:00:19.6]}
34... Re2# {[%clk 0:01:31.7]} 0-1

[Event "*** MasterClass Titled Tuesday Blitz"]
[Site "Chess.com"]
[Date "2017.08.01"]
[Round "2"]
[White "Fins0905"]
[Black "vellottiwizard"]
[Result "0-1"]
[WhiteElo "2401"]
[BlackElo "2538"]
[TimeControl "180+2"]
[EndTime "13:22:03 PDT"]
[Termination "vellottiwizard won by resignation"]

1. d4 {[%clk 0:03:01.9]} 1... Nf6 {[%clk 0:03:00.1]} 2. c4 {[%clk 0:03:00.4]}
2... e6 {[%clk 0:03:01.6]} 3. Nc3 {[%clk 0:03:01.6]} 3... Bb4 {[%clk 0:03:03.2]}
4. e3 {[%clk 0:03:03.1]} 4... O-O {[%clk 0:03:04.1]} 5. Bd3 {[%clk 0:03:04.4]}
5... d5 {[%clk 0:03:05.9]} 6. cxd5 {[%clk 0:03:05.3]} 6... exd5 {[%clk
0:03:06.6]} 7. Nf3 {[%clk 0:03:05.1]} 7... c5 {[%clk 0:03:07.8]} 8. O-O {[%clk
0:03:04.6]} 8... Nc6 {[%clk 0:03:07.4]} 9. dxc5 {[%clk 0:03:01.5]} 9... Bxc5
{[%clk 0:03:07.6]} 10. a3 {[%clk 0:02:58.4]} 10... Qe7 {[%clk 0:03:08]} 11. b4
{[%clk 0:02:56.3]} 11... Bb6 {[%clk 0:03:09.4]} 12. Bb2 {[%clk 0:02:56.2]} 12...
Rd8 {[%clk 0:03:10.6]} 13. Nb5 {[%clk 0:02:53.6]} 13... Bg4 {[%clk 0:03:11.3]}
14. Be2 {[%clk 0:02:47.8]} 14... Ne4 {[%clk 0:03:08.7]} 15. Nfd4 {[%clk
0:02:42.1]} 15... Bxe2 {[%clk 0:03:04.8]} 16. Qxe2 {[%clk 0:02:44]} 16... Ne5
{[%clk 0:03:05.3]} 17. Nf5 {[%clk 0:02:33.3]} 17... Qf6 {[%clk 0:02:45.1]} 18.
Nxg7 {[%clk 0:02:20.4]} 18... Qxg7 {[%clk 0:02:42.6]} 19. f4 {[%clk 0:02:21.3]}
19... Bxe3+ {[%clk 0:02:44.4]} 20. Qxe3 {[%clk 0:02:09.9]} 20... Nc4 {[%clk
0:02:45.6]} 21. Qxe4 {[%clk 0:01:52]} 21... dxe4 {[%clk 0:02:38.6]} 22. Bxg7
{[%clk 0:01:52.7]} 22... Kxg7 {[%clk 0:02:40.5]} 23. f5 {[%clk 0:01:42]} 23...
a6 {[%clk 0:02:15.9]} 24. Nc3 {[%clk 0:01:41.3]} 24... Rd4 {[%clk 0:02:03.1]}
25. f6+ {[%clk 0:01:33.3]} 25... Kg6 {[%clk 0:02:03.2]} 26. Rf4 {[%clk
0:01:32.6]} 26... Re8 {[%clk 0:02:03.4]} 27. Raf1 {[%clk 0:01:29.8]} 27... h5
{[%clk 0:02:02.3]} 28. Ne2 {[%clk 0:01:01.1]} 28... Rd2 {[%clk 0:01:55.7]} 29.
Ng3 {[%clk 0:01:01.8]} 29... Ne3 {[%clk 0:01:46.9]} 30. R1f2 {[%clk 0:00:50.8]}
30... Rd1+ {[%clk 0:01:47.4]} 31. Nf1 {[%clk 0:00:51.7]} 31... Nd5 {[%clk
0:01:36.5]} 32. g3 {[%clk 0:00:19.3]} 32... Nxf4 {[%clk 0:01:33.2]} 33. gxf4
{[%clk 0:00:19.6]} 33... e3 {[%clk 0:01:34.9]} 34. Re2 {[%clk 0:00:20.9]} 34...
Kf5 {[%clk 0:01:31.7]} 35. Kg2 {[%clk 0:00:22.1]} 35... Kxf4 {[%clk 0:01:32.7]}
36. Ng3 {[%clk 0:00:21.2]} 36... h4 {[%clk 0:01:33.4]} 37. Nh5+ {[%clk
0:00:21.7]} 37... Kg5 {[%clk 0:01:31.5]} 38. Ng7 {[%clk 0:00:22.6]} 38... Re5
{[%clk 0:01:31.3]} 39. Kf3 {[%clk 0:00:21]} 39... Kxf6 {[%clk 0:01:32.3]} 0-1

[Event "*** MasterClass Titled Tuesday Blitz"]
[Site "Chess.com"]
[Date "2017.08.01"]
[Round "2"]
[White "Jungle_Jaguar"]
[Black "stefanodinn"]
[Result "1-0"]
[WhiteElo "2329"]
[BlackElo "2174"]
[TimeControl "180+2"]
[EndTime "13:22:17 PDT"]
[Termination "Jungle_Jaguar won by resignation"]

1. c4 {[%clk 0:03:01.9]} 1... c6 {[%clk 0:03:00.2]} 2. g3 {[%clk 0:03:02.8]}
2... d5 {[%clk 0:03:01.2]} 3. Bg2 {[%clk 0:03:04.3]} 3... Nf6 {[%clk 0:02:59]}
4. Nf3 {[%clk 0:03:05.6]} 4... Bf5 {[%clk 0:02:52.5]} 5. O-O {[%clk 0:03:05.4]}
5... e6 {[%clk 0:02:52.1]} 6. b3 {[%clk 0:03:02.5]} 6... h6 {[%clk 0:02:52.1]}
7. Bb2 {[%clk 0:03:03.1]} 7... Nbd7 {[%clk 0:02:52.7]} 8. d4 {[%clk 0:03:03.9]}
8... Bd6 {[%clk 0:02:39.7]} 9. Nbd2 {[%clk 0:03:02.7]} 9... O-O {[%clk
0:02:40.7]} 10. Rc1 {[%clk 0:03:02.2]} 10... Qe7 {[%clk 0:02:40.4]} 11. Ne5
{[%clk 0:02:58.5]} 11... Ba3 {[%clk 0:01:47.2]} 12. Bxa3 {[%clk 0:02:58.4]}
12... Qxa3 {[%clk 0:01:47.5]} 13. Nxd7 {[%clk 0:02:44.1]} 13... Nxd7 {[%clk
0:01:48]} 14. e4 {[%clk 0:02:45.1]} 14... dxe4 {[%clk 0:01:47.9]} 15. Nxe4
{[%clk 0:02:44.8]} 15... Bxe4 {[%clk 0:01:13.7]} 16. Bxe4 {[%clk 0:02:43.8]}
16... Nf6 {[%clk 0:01:14.9]} 17. Bb1 {[%clk 0:02:40.1]} 17... Rfd8 {[%clk
0:01:14.6]} 18. Rc3 {[%clk 0:02:23.2]} 18... Rd7 {[%clk 0:01:03.9]} 19. Rd3
{[%clk 0:02:05.4]} 19... Rad8 {[%clk 0:01:04.5]} 20. Re1 {[%clk 0:01:48.8]}
20... Qb2 {[%clk 0:00:40.8]} 21. Re2 {[%clk 0:01:43.7]} 21... Qa1 {[%clk
0:00:19.8]} 22. Red2 {[%clk 0:01:39.9]} 22... Kh8 {[%clk 0:00:09.1]} 23. f3
{[%clk 0:01:23]} 23... c5 {[%clk 0:00:09.8]} 24. d5 {[%clk 0:01:23.7]} 24...
exd5 {[%clk 0:00:10.1]} 25. cxd5 {[%clk 0:01:24.7]} 25... Rxd5 {[%clk
0:00:03.9]} 26. Rxd5 {[%clk 0:01:26]} 26... Rxd5 {[%clk 0:00:04.8]} 27. Rxd5
{[%clk 0:01:27.6]} 27... Nxd5 {[%clk 0:00:05.8]} 28. Qxd5 {[%clk 0:01:27.9]}
28... Qxb1+ {[%clk 0:00:06.9]} 29. Kg2 {[%clk 0:01:29.2]} 29... Qc2+ {[%clk
0:00:07.4]} 30. Kh3 {[%clk 0:01:28]} 30... Qg6 {[%clk 0:00:06.8]} 31. Qxb7
{[%clk 0:01:25.1]} 31... Qf5+ {[%clk 0:00:07.8]} 32. g4 {[%clk 0:01:23.9]} 32...
Qg6 {[%clk 0:00:08.6]} 33. Qxa7 {[%clk 0:01:21.7]} 33... Qc6 {[%clk 0:00:09.1]}
34. Qb8+ {[%clk 0:01:21.5]} 34... Kh7 {[%clk 0:00:09.4]} 35. Qf4 {[%clk
0:01:23]} 35... f6 {[%clk 0:00:09.8]} 36. Qe4+ {[%clk 0:01:24.3]} 1-0

[Event "*** MasterClass Titled Tuesday Blitz"]
[Site "Chess.com"]
[Date "2017.08.01"]
[Round "2"]
[White "quesfr"]
[Black "DiamondCrusher22"]
[Result "0-1"]
[WhiteElo "2124"]
[BlackElo "2040"]
[TimeControl "180+2"]
[EndTime "13:22:24 PDT"]
[Termination "DiamondCrusher22 won on time"]

1. e4 {[%clk 0:03:01.9]} 1... e5 {[%clk 0:02:59]} 2. Nf3 {[%clk 0:03:01.8]} 2...
Nc6 {[%clk 0:03:00]} 3. Nc3 {[%clk 0:03:02.1]} 3... Nf6 {[%clk 0:03:01]} 4. a3
{[%clk 0:03:02.5]} 4... a5 {[%clk 0:02:45.7]} 5. d4 {[%clk 0:03:00.9]} 5... exd4
{[%clk 0:02:42.5]} 6. Nxd4 {[%clk 0:03:02.8]} 6... Bc5 {[%clk 0:02:42.6]} 7. Be3
{[%clk 0:02:07.2]} 7... Nxd4 {[%clk 0:02:04.6]} 8. Bxd4 {[%clk 0:02:06.3]} 8...
Qe7 {[%clk 0:02:02.5]} 9. Bc4 {[%clk 0:01:07.3]} 9... O-O {[%clk 0:01:34.7]} 10.
O-O {[%clk 0:00:57.5]} 10... d6 {[%clk 0:01:18.4]} 11. Bxc5 {[%clk 0:00:26.1]}
11... dxc5 {[%clk 0:01:18.6]} 12. Re1 {[%clk 0:00:23.4]} 12... Rd8 {[%clk
0:01:13.1]} 13. Qf3 {[%clk 0:00:18.7]} 13... Be6 {[%clk 0:00:47.2]} 14. Bxe6
{[%clk 0:00:19.1]} 14... Qxe6 {[%clk 0:00:47.5]} 15. h3 {[%clk 0:00:19.8]} 15...
c6 {[%clk 0:00:46.7]} 16. Rad1 {[%clk 0:00:19.2]} 16... Nd7 {[%clk 0:00:44.7]}
17. Qe3 {[%clk 0:00:14.3]} 17... Qe7 {[%clk 0:00:31.3]} 18. f4 {[%clk
0:00:13.5]} 18... Nb6 {[%clk 0:00:26.4]} 19. b3 {[%clk 0:00:08.9]} 19... a4
{[%clk 0:00:20.9]} 0-1